bitfinex-derivatives/quotes_BTCF0:USTF0_20240830
["timestamp","ask_amount","ask_price","bid_price","bid_amount"]
[1724998622806,2.09268621,58989.0,58988.0,0.00025438]
[1724998623609,2.10168621,58989.0,58988.0,0.00125438]
[1724998623809,2.16249021,58989.0,58988.0,0.00125438]
[1724998624016,0.40313021,58989.0,58988.0,0.00125438]
[1724998624216,0.34232621,58989.0,58988.0,0.00125438]
[1724998624619,0.34532621,58989.0,58988.0,0.00225438]
[1724998627025,0.34533088,58989.0,58988.0,0.00225438]
[1724998628629,0.34533088,58989.0,58988.0,0.00125438]
[1724998628630,0.34333088,58989.0,58988.0,0.00125438]
[1724998629321,0.34433088,58989.0,58988.0,0.00125438]
[1724998629520,0.33733088,58989.0,58988.0,0.00025438]
[1724998630214,0.33533088,58989.0,58988.0,0.00025438]
[1724998630517,0.33933088,58989.0,58988.0,0.00025438]
[1724998631230,0.33833088,58989.0,58988.0,0.00025438]
[1724998631621,0.33733088,58989.0,58988.0,0.00025438]
[1724998632619,0.33433088,58989.0,58988.0,0.00025438]
[1724998632820,0.33633088,58989.0,58988.0,0.00025438]
[1724998633517,0.84289088,58989.0,58988.0,0.00025438]
[1724998633717,1.80569088,58989.0,58988.0,0.00025438]
[1724998633918,1.86649574,58989.0,58988.0,0.00025438]
[1724998634728,1.86949574,58989.0,58988.0,0.00025438]
[1724998635529,1.86849574,58989.0,58988.0,0.00025438]
[1724998636329,1.87349574,58989.0,58988.0,0.00125438]
[1724998636531,0.40413574,58989.0,58988.0,0.00125438]
[1724998636737,0.34333088,58989.0,58988.0,0.00125438]
[1724998637035,0.34533088,58989.0,58988.0,0.00125438]
[1724998637221,0.33933088,58989.0,58988.0,0.00025438]
[1724998637427,0.34433088,58989.0,58988.0,0.00025438]
[1724998638228,0.33833088,58989.0,58988.0,0.00025438]
[1724998638528,0.34033088,58989.0,58988.0,0.00025438]
[1724998639831,0.33833088,58989.0,58988.0,0.00025438]
[1724998640635,0.34133088,58989.0,58988.0,0.00125438]
[1724998641234,0.34533088,58989.0,58988.0,0.00125438]
[1724998641537,0.85389088,58989.0,58988.0,0.00125438]
[1724998642240,0.34533088,58989.0,58988.0,0.00125438]
[1724998642932,0.33933088,58989.0,58988.0,0.00025438]
[1724998643132,0.34533088,58989.0,58988.0,0.00125438]
[1724998646037,0.70613088,58989.0,58988.0,0.00125438]
[1724998646232,0.70613241,58989.0,58988.0,0.00125438]
[1724998648040,0.82613241,58989.0,58988.0,0.00125438]
[1724998648748,0.87973443,58989.0,58988.0,0.00125438]
[1724998649051,0.94053455,58989.0,58988.0,0.00125438]
[1724998650639,0.82613241,58989.0,58988.0,0.00125438]
[1724998652637,0.084765,58983.0,58967.0,0.3608]
[1724998652837,0.084787,58969.0,58965.0,0.1398]
[1724998653037,0.17203574,58968.0,58964.0,0.224592]
[1724998653236,0.05203574,58967.0,58964.0,0.224592]
[1724998653546,0.084787,58969.0,58966.0,0.12]
[1724998653737,0.05204907,58968.0,58966.0,0.12]
[1724998653937,0.17485479,58967.0,58966.0,0.12]
[1724998654146,0.05204907,58967.0,58966.0,0.12]
[1724998654445,0.18149495,58967.0,58966.0,0.12]
[1724998655040,0.17149495,58967.0,58966.0,0.12]
[1724998655239,0.17149495,58967.0,58966.0,0.134]
[1724998655546,0.22354402,58967.0,58966.0,0.134]
[1724998656233,0.22454402,58967.0,58966.0,0.148]
[1724998661051,0.05851785,58967.0,58966.0,0.148]
[1724998661356,0.00646878,58967.0,58966.0,0.148]
[1724998662550,0.001,58967.0,58966.0,0.148]
[1724998665144,0.19123158,58967.0,58966.0,0.148]
[1724998669049,0.19123158,58967.0,58966.0,0.028]
[1724998669247,0.39601958,58967.0,58966.0,0.028]
[1724998669449,0.44806865,58967.0,58966.0,0.028]
[1724998670557,0.32807174,58967.0,58966.0,0.028]
[1724998671655,0.24328374,58967.0,58966.0,0.028]
[1724998671954,0.24328374,58967.0,58966.0,0.076]
[1724998672156,0.19123158,58967.0,58966.0,0.076]
[1724998672546,0.19123158,58967.0,58966.0,0.028]
[1724998681058,0.32806815,58967.0,58966.0,0.028]
[1724998685957,0.92161615,58967.0,58966.0,0.028]
[1724998686157,1.52161615,58967.0,58966.0,0.028]
[1724998686353,1.58241633,58967.0,58966.0,0.028]
[1724998687868,0.98241633,58967.0,58966.0,0.028]
[1724998688066,0.92161615,58967.0,58966.0,0.018]
[1724998688369,1.69580985,58967.0,58966.0,0.018]
[1724998688570,1.75661003,58967.0,58966.0,0.018]
[1724998689267,1.70241633,58967.0,58966.0,0.018]
[1724998689568,1.70141633,58967.0,58966.0,0.008]
[1724998690070,2.11625563,58967.0,58966.0,0.008]
[1724998691182,2.00141615,58967.0,58966.0,0.008]
[1724998691985,1.40141615,58967.0,58966.0,0.008]
[1724998693383,2.00141615,58967.0,58966.0,0.008]
[1724998695586,2.11652134,58967.0,58966.0,0.008]
[1724998696080,0.084797,58961.0,58960.0,0.00025438]
[1724998696282,0.565597,58961.0,58960.0,0.00025438]
[1724998696486,0.91047737,58961.0,58960.0,0.00025438]
[1724998697788,0.79147737,58961.0,58960.0,0.00725438]
[1724998697992,0.91147737,58961.0,58960.0,0.00725438]
[1724998698176,0.86127737,58961.0,58960.0,0.00725438]
[1724998699092,0.5004885,58961.0,58960.0,0.00725438]
[1724998699483,0.5004885,58961.0,58960.0,0.00425438]
[1724998699689,0.5014885,58961.0,58960.0,0.00425438]
[1724998700696,0.50985165,58961.0,58960.0,0.00425438]
[1724998701081,0.50885165,58961.0,58960.0,0.00025438]
[1724998710402,0.51585165,58961.0,58960.0,0.00025438]
[1724998711394,0.4570885,58961.0,58960.0,0.00025438]
[1724998711691,0.4650885,58961.0,58960.0,0.00125438]
[1724998712998,0.4570885,58961.0,58960.0,0.00025438]
[1724998713187,0.4650885,58961.0,58960.0,0.00125438]
[1724998713592,0.46508753,58961.0,58960.0,0.00125438]
[1724998714999,0.44908753,58961.0,58960.0,0.00025438]
[1724998715300,0.46108753,58961.0,58960.0,0.00025438]
[1724998715701,0.45508753,58961.0,58960.0,0.00025438]
[1724998715899,0.45408753,58961.0,58960.0,0.00025438]
[1724998716602,0.45908753,58961.0,58960.0,0.00025438]
[1724998717704,0.46408753,58961.0,58960.0,0.00025438]
[1724998718194,0.45708753,58961.0,58960.0,0.00025438]
[1724998718396,0.46408753,58961.0,58960.0,0.00025438]
[1724998722800,0.34408753,58961.0,58960.0,0.00025438]
[1724998723000,0.46408753,58961.0,58960.0,0.00025438]
[1724998723397,0.46408849,58961.0,58960.0,0.00025438]
[1724998728301,0.4120288,58961.0,58960.0,0.00025438]
[1724998728498,0.46408756,58961.0,58960.0,0.00025438]
[1724998732403,0.46408748,58961.0,58960.0,0.00025438]
[1724998733200,0.4120288,58961.0,58960.0,0.00025438]
[1724998733401,0.46408725,58961.0,58960.0,0.00025438]
[1724998733602,0.46408723,58961.0,58960.0,0.00025438]
[1724998735409,0.45608723,58961.0,58960.0,0.00025438]
[1724998735606,0.45908723,58961.0,58960.0,0.00025438]
[1724998735908,0.45508723,58961.0,58960.0,0.00025438]
[1724998737409,0.45608723,58961.0,58960.0,0.00025438]
[1724998737603,0.45508723,58961.0,58960.0,0.00025438]
[1724998738209,0.45708723,58961.0,58960.0,0.00025438]
[1724998741311,0.45108723,58961.0,58960.0,0.00025438]
[1724998741519,0.45408723,58961.0,58960.0,0.00025438]
[1724998741816,0.53688423,58961.0,58960.0,0.00025438]
[1724998742007,0.54188423,58961.0,58960.0,0.00025438]
[1724998742200,0.54388423,58961.0,58960.0,0.00025438]
[1724998742905,0.33908723,58961.0,58960.0,0.00025438]
[1724998743110,0.25429023,58961.0,58960.0,0.59385338]
[1724998743313,0.06205843,58961.0,58960.0,1.19385338]
[1724998743616,0.06205843,58961.0,58960.0,1.29445338]
[1724998743812,0.05705843,58961.0,58960.0,1.29445338]
[1724998744006,0.011,58961.0,58960.0,1.29445338]
[1724998744409,0.006,58961.0,58960.0,0.69445338]
[1724998744712,0.36203214,58961.0,58960.0,0.00025438]
[1724998745622,0.72283214,58961.0,58960.0,0.00025438]
[1724998745915,0.24203214,58961.0,58960.0,0.00025438]
[1724998746602,0.4164353,58961.0,58960.0,0.00025438]
[1724998746803,0.2964353,58961.0,58960.0,0.00025438]
[1724998747505,0.24203263,58961.0,58960.0,0.00025438]
[1724998748120,0.32682963,58961.0,58960.0,0.00025438]
[1724998750215,0.44682963,58961.0,58960.0,0.00025438]
[1724998751420,0.44683069,58961.0,58960.0,0.00025438]
[1724998751922,0.89242769,58961.0,58960.0,0.00025438]
[1724998752421,0.94683036,58961.0,58960.0,0.00025438]
[1724998754319,1.00766191,58961.0,58960.0,0.00025438]
[1724998755319,0.94683036,58961.0,58960.0,0.00025438]
[1724998756327,0.94683315,58961.0,58960.0,0.00025438]
[1724998759717,0.946836,58961.0,58960.0,0.00025438]
[1724998760323,0.946836,58961.0,58960.0,3.8e-07]
[1724998760917,0.94683618,58961.0,58960.0,3.8e-07]
[1724998761827,2.05563618,58961.0,58960.0,3.8e-07]
[1724998762022,2.11646773,58961.0,58960.0,3.8e-07]
[1724998762827,1.51646773,58961.0,58960.0,3.8e-07]
[1724998764130,0.084807,58954.0,58945.0,0.00833127]
[1724998764429,0.650426,58950.0,58945.0,0.00833127]
[1724998764630,0.75689447,58950.0,58945.0,0.00833127]
[1724998764929,0.94314648,58950.0,58945.0,0.00833127]
[1724998765427,0.94314648,58950.0,58949.0,0.131]
[1724998765623,0.94314648,58950.0,58949.0,0.134]
[1724998765824,0.94415597,58950.0,58949.0,0.134]
[1724998766524,0.85934297,58950.0,58949.0,0.134]
[1724998767124,0.8049403,58950.0,58949.0,0.134]
[1724998767323,0.8059403,58950.0,58949.0,0.134]
[1724998768832,0.81410672,58950.0,58949.0,0.134]
[1724998770735,0.81410534,58950.0,58949.0,0.134]
[1724998775134,0.69410534,58950.0,58949.0,0.134]
[1724998775638,0.81410532,58950.0,58949.0,0.134]
[1724998778139,0.60291996,58950.0,58949.0,0.134]
[1724998778635,0.45330532,58950.0,58949.0,0.134]
[1724998778933,0.2403259,58950.0,58949.0,0.4948]
[1724998779135,0.18825201,58950.0,58949.0,0.6148]
[1724998780234,0.18825201,58950.0,58949.0,0.4948]
[1724998780840,0.30825201,58950.0,58949.0,0.4948]
[1724998781039,0.3603259,58950.0,58949.0,0.4948]
[1724998785041,0.4451389,58950.0,58949.0,0.4948]
[1724998785227,0.44513422,58950.0,58949.0,0.4948]
[1724998785426,0.44513422,58950.0,58949.0,0.134]
[1724998790343,0.21584458,58950.0,58949.0,0.134]
[1724998790543,0.40161545,58950.0,58949.0,0.134]
[1724998791148,0.32265308,58950.0,58949.0,0.134]
[1724998791350,0.44265308,58950.0,58949.0,0.134]
[1724998797138,0.44265667,58950.0,58949.0,0.134]
[1724998797948,0.39058387,58950.0,58949.0,0.134]
[1724998798359,0.27058387,58950.0,58949.0,0.134]
[1724998798855,0.18577087,58950.0,58949.0,0.727734]
[1724998799150,0.18189115,58954.0,58949.0,0.876934]
[1724998799354,0.18189115,58954.0,58953.0,0.4808]
[1724998799548,0.08506138,58955.0,58953.0,0.4808]
[1724998799749,0.1910317,58954.0,58953.0,0.4808]
[1724998799951,0.2758387,58954.0,58953.0,0.4808]
[1724998800453,0.2768387,58954.0,58953.0,0.4808]
[1724998800655,0.32890116,58954.0,58953.0,0.4808]
[1724998801547,0.32990116,58954.0,58953.0,0.4808]
[1724998802147,0.32890116,58954.0,58953.0,0.4828]
[1724998802355,0.32790116,58954.0,58953.0,0.4838]
[1724998802747,0.32790116,58954.0,58953.0,0.4818]
[1724998803045,0.32790116,58954.0,58953.0,0.48898067]
[1724998803357,0.32890116,58954.0,58953.0,0.48898067]
[1724998804058,0.24409416,58954.0,58953.0,0.48898067]
[1724998804452,0.24409416,58954.0,58953.0,0.57378967]
[1724998804645,0.05623579,58954.0,58953.0,0.57378967]
[1724998805356,0.05823579,58954.0,58953.0,0.57378967]
[1724998805660,0.05923579,58954.0,58953.0,0.57378967]
[1724998805855,0.05723579,58954.0,58953.0,0.57578967]
[1724998806358,0.05523579,58954.0,58953.0,0.57678967]
[1724998806857,0.05523579,58954.0,58953.0,0.57478967]
[1724998807053,0.05523579,58954.0,58953.0,0.57578967]
[1724998807254,0.05523579,58954.0,58953.0,0.57678967]
[1724998809855,0.14004279,58954.0,58953.0,0.3638]
[1724998811659,0.08798033,58954.0,58953.0,0.3638]
[1724998811956,0.08898033,58954.0,58953.0,0.3608]
[1724998812555,0.08898033,58954.0,58953.0,0.3618]
[1724998812759,0.08798033,58954.0,58953.0,0.3618]
[1724998815555,0.00317333,58954.0,58953.0,0.87068]
[1724998815761,0.00025438,58955.0,58954.0,0.084807]
[1724998815961,0.00025438,58955.0,58954.0,0.204807]
[1724998816261,0.00025438,58955.0,58954.0,0.713687]
[1724998817873,0.00125438,58955.0,58954.0,0.713687]
[1724998818262,0.00125438,58955.0,58954.0,0.204807]
[1724998818663,0.00125438,58955.0,58954.0,0.084807]
[1724998818971,0.00125438,58955.0,58954.0,0.225087]
[1724998819275,0.18712578,58955.0,58954.0,0.085807]
[1724998820566,0.18712578,58955.0,58954.0,0.205807]
[1724998820964,0.00025438,58955.0,58954.0,0.205807]
[1724998822162,0.00025438,58955.0,58954.0,0.713687]
[1724998822371,0.00025438,58955.0,58954.0,0.714687]
[1724998823066,0.00025438,58955.0,58954.0,1.314687]
[1724998823266,0.004,58961.0,58960.0,0.084799]
[1724998823470,0.05605973,58968.0,58960.0,0.4808]
[1724998823661,0.05205973,58970.0,58967.0,0.3608]
[1724998823860,0.18110949,58970.0,58969.0,0.12]
[1724998824058,0.05205973,58970.0,58969.0,0.12]
[1724998824261,0.084783,58971.0,58969.0,0.12]
[1724998824459,0.18110949,58970.0,58969.0,0.12]
[1724998824664,0.23316922,58970.0,58969.0,0.12]
[1724998826271,0.26116922,58970.0,58969.0,0.12]
[1724998826665,0.26116922,58970.0,58969.0,0.5739777]
[1724998827060,0.08005973,58970.0,58969.0,1.0826977]
[1724998827262,0.08005973,58970.0,58969.0,1.6826977]
[1724998828768,0.07096877,58970.0,58969.0,1.6826977]
[1724998828973,0.05705394,58970.0,58969.0,1.6826977]
[1724998829173,0.24285841,58970.0,58969.0,1.6826977]
[1724998829978,0.05705394,58970.0,58969.0,1.8526977]
[1724998830276,0.025,58970.0,58969.0,1.8526977]
[1724998832075,0.025,58970.0,58969.0,1.9917777]
[1724998834979,0.00025438,58975.0,58974.0,0.084778]
[1724998835275,0.00025438,58975.0,58974.0,0.735578]
[1724998835478,0.00025438,58975.0,58974.0,1.844258]
[1724998835777,0.00025438,58975.0,58974.0,1.244258]
[1724998836174,0.05203497,58991.0,58988.0,0.084758]
[1724998836382,0.18580447,58994.0,58993.0,0.084751]
[1724998836567,0.28420447,58999.0,58993.0,0.084751]
[1724998836768,0.28420447,58999.0,58997.0,0.3608]
[1724998836985,0.19069917,58998.0,58997.0,0.3608]
[1724998837282,0.24273414,58998.0,58997.0,0.3608]
[1724998837777,0.32747814,58998.0,58997.0,0.3608]
[1724998839371,0.32746863,58998.0,58997.0,0.3618]
[1724998839979,0.13676946,58998.0,58997.0,0.3618]
[1724998840283,0.2719078,58998.0,58997.0,0.3618]
[1724998840482,0.23918926,58998.0,58997.0,0.3618]
[1724998842076,0.23918926,58998.0,58997.0,0.50084]
[1724998842591,0.05202546,58998.0,58997.0,1.094065]
[1724998842877,0.084731,59007.0,58997.0,1.00932]
[1724998843081,0.18505346,58998.0,58997.0,0.585585]
[1724998843268,0.18505346,58999.0,58998.0,0.084744]
[1724998843672,0.05202546,59006.0,58998.0,0.593224]
[1724998843873,0.05201953,59005.0,59004.0,0.3608]
[1724998844072,0.18356724,59005.0,59004.0,0.3608]
[1724998844273,0.23558677,59006.0,59004.0,0.3608]
[1724998844575,0.13675153,59006.0,59005.0,0.13904]
[1724998844773,0.084732,59006.0,59005.0,0.13904]
[1724998844974,0.2806849,59006.0,59005.0,0.13904]
[1724998845167,0.33270443,59006.0,59005.0,0.13904]
[1724998845571,0.33270443,59006.0,59004.0,0.3608]
[1724998845572,0.084734,59005.0,59004.0,0.3608]
[1724998845781,0.13675353,59005.0,59004.0,0.49984]
[1724998845982,0.32310244,59005.0,59004.0,0.3608]
[1724998848384,0.32710244,59005.0,59004.0,0.3608]
[1724998848784,0.32810246,59005.0,59004.0,0.3608]
[1724998851487,0.51313915,59005.0,59004.0,0.3608]
[1724998851696,0.51213915,59005.0,59004.0,0.3608]
[1724998851878,0.32710246,59005.0,59004.0,0.3608]
[1724998852376,0.32810246,59005.0,59004.0,0.3608]
[1724998852878,0.32310246,59005.0,59004.0,0.3608]
[1724998853079,0.32510246,59005.0,59004.0,0.3608]
[1724998854676,0.32710246,59005.0,59004.0,0.3608]
[1724998855486,0.32910246,59005.0,59004.0,0.3618]
[1724998857096,0.38993401,59005.0,59004.0,0.27342262]
[1724998858289,0.38993401,59005.0,59004.0,0.001]
[1724998858498,0.38993431,59005.0,59004.0,0.001]
[1724998860894,0.3984017,59005.0,59004.0,0.001]
[1724998862296,1.7968417,59005.0,58998.0,0.36894532]
[1724998862488,0.11285484,59004.0,58998.0,0.3608]
[1724998862692,0.99925286,59005.0,58998.0,0.3608]
[1724998862693,0.21978835,58999.0,58998.0,0.3608]
[1724998862889,0.33264319,58999.0,58998.0,0.3608]
[1724998863191,0.81764766,58999.0,58998.0,0.3608]
[1724998863596,0.98713166,58999.0,58998.0,0.3628]
[1724998863903,0.169502,58993.0,58992.0,3.8e-07]
[1724998864089,0.084755,58991.0,58976.0,0.13884]
[1724998864297,0.3608,58987.0,58976.0,0.13884]
[1724998864598,0.084771,58980.0,58976.0,0.14706266]
[1724998864991,0.18635392,58979.0,58976.0,0.14706266]
[1724998865191,0.23837721,58979.0,58976.0,0.14706266]
[1724998865391,0.23737721,58979.0,58977.0,0.29]
[1724998866599,0.05204007,58978.0,58977.0,0.29]
[1724998866797,0.05204007,58979.0,58977.0,0.29]
[1724998866996,0.084771,58980.0,58977.0,0.3958]
[1724998867191,0.001,58979.0,58977.0,0.3958]
[1724998868197,0.001,58980.0,58977.0,0.3958]
[1724998869810,0.001,58979.0,58977.0,0.3958]
[1724998870502,0.003,58979.0,58977.0,0.3958]
[1724998870804,0.002,58979.0,58977.0,0.3958]
[1724998871102,0.003,58979.0,58977.0,0.3958]
[1724998871302,0.003,58979.0,58977.0,0.1058]
[1724998872001,0.19377782,58978.0,58976.0,0.23183766]
[1724998872507,0.003,58979.0,58976.0,0.23183766]
[1724998872707,0.004,58979.0,58976.0,0.23183766]
[1724998873606,0.004,58979.0,58976.0,0.23383766]
[1724998873798,0.004,58979.0,58977.0,0.084774]
[1724998873998,0.19205113,58978.0,58977.0,0.084774]
[1724998874299,0.004,58979.0,58977.0,0.084774]
[1724998874699,0.19205113,58978.0,58977.0,0.084774]
[1724998876006,0.19205113,58978.0,58977.0,0.085774]
[1724998876500,0.05203968,58979.0,58977.0,0.086774]
[1724998876703,0.17643049,58979.0,58977.0,0.085774]
[1724998877007,0.004,58978.0,58977.0,0.084774]
[1724998877397,0.19548117,58978.0,58977.0,0.084774]
[1724998878306,0.19548117,58978.0,58976.0,0.14706266]
[1724998878307,0.24752085,58978.0,58976.0,0.14706266]
[1724998878605,0.05203968,58977.0,58976.0,0.14706266]
[1724998878995,0.19157923,58977.0,58976.0,0.14706266]
[1724998880296,0.19257923,58977.0,58976.0,0.14706266]
[1724998880607,0.19257923,58977.0,58976.0,0.14806266]
[1724998881009,0.19257923,58977.0,58976.0,0.14706266]
[1724998881203,0.19457923,58977.0,58976.0,0.14706266]
[1724998882705,0.19357923,58977.0,58976.0,0.14706266]
[1724998882907,0.19457923,58977.0,58976.0,0.14706266]
[1724998883311,0.19657923,58977.0,58976.0,0.14706266]
[1724998884910,0.24861891,58977.0,58976.0,0.14706266]
[1724998886711,0.09797245,58977.0,58976.0,0.14706266]
[1724998887013,0.04593277,58977.0,58976.0,0.14706266]
[1724998890510,0.04593277,58977.0,58976.0,0.26706266]
[1724998894011,0.09797464,58977.0,58976.0,0.26706266]
[1724998894215,0.09697464,58977.0,58976.0,0.26706266]
[1724998894716,0.09397464,58977.0,58976.0,0.26706266]
[1724998894912,0.09797464,58977.0,58976.0,0.26706266]
[1724998895721,0.09797202,58977.0,58976.0,0.71263866]
[1724998895921,0.05703925,58977.0,58976.0,0.71263866]
[1724998896111,0.05703925,58977.0,58976.0,1.82131866]
[1724998896311,0.05603925,58977.0,58976.0,1.82131866]
[1724998896521,0.05703925,58977.0,58976.0,1.82131866]
[1724998897722,0.001,58977.0,58976.0,1.82131866]
[1724998897924,0.004,58977.0,58976.0,1.82131866]
[1724998898117,0.004,58977.0,58976.0,1.99131866]
[1724998898529,0.001,58977.0,58976.0,1.99631866]
[1724998898820,0.05203925,58978.0,58977.0,0.084774]
[1724998899329,0.05203925,58978.0,58977.0,0.593454]
[1724998899920,0.05203925,58983.0,58982.0,0.084767]
[1724998900115,0.05203925,58983.0,58982.0,0.445567]
[1724998900632,0.05203417,58983.0,58982.0,0.445567]
[1724998901731,0.05403417,58983.0,58982.0,0.445567]
[1724998902232,0.003,58983.0,58982.0,0.445567]
[1724998904139,0.002,58983.0,58982.0,0.445567]
[1724998904326,0.004,58983.0,58982.0,0.445567]
[1724998905238,0.00025438,58984.0,58982.0,1.46944]
[1724998905533,0.18624929,59002.0,59001.0,0.08474]
[1724998905828,0.0987,59007.0,59001.0,0.08474]
[1724998905829,0.18624929,59003.0,59001.0,0.49956]
[1724998906018,0.18624929,59003.0,59001.0,0.3608]
[1724998906222,0.18624929,59003.0,58994.0,0.3608]
[1724998906223,0.47738293,59002.0,58994.0,0.3608]
[1724998906433,0.47738293,59002.0,58989.0,0.3608]
[1724998906434,0.374748,58995.0,58989.0,0.3608]
[1724998906628,0.10153417,58994.0,58992.0,0.00025438]
[1724998906930,0.23688293,58994.0,58992.0,0.00025438]
[1724998907137,0.05203417,58993.0,58992.0,0.00025438]
[1724998907629,0.24097744,58993.0,58992.0,0.00025438]
[1724998908327,0.24097744,58993.0,58992.0,0.00125438]
[1724998908733,0.24797744,58993.0,58992.0,0.00225438]
[1724998909931,0.24796917,58993.0,58992.0,0.00225438]
[1724998910142,0.19594327,58993.0,58992.0,0.00225438]
[1724998916035,0.28069427,58993.0,58992.0,0.00225438]
[1724998921445,0.28069427,58993.0,58992.0,0.12225438]
[1724998921651,0.19594327,58993.0,58992.0,0.12225438]
[1724998921840,0.007,58993.0,58992.0,0.12225438]
[1724998923051,0.007,58993.0,58992.0,0.20700738]
[1724998925849,0.007,58993.0,58992.0,1.31552738]
[1724998926854,0.00399962,58993.0,58992.0,1.31552738]
[1724998929253,0.05377754,59016.0,59011.0,0.084725]
[1724998929437,0.36901595,59017.0,59014.0,0.12]
[1724998929642,0.19397126,59015.0,59014.0,0.12]
[1724998929848,0.19397126,59016.0,59014.0,0.12]
[1724998930049,0.50741296,59017.0,59014.0,0.12]
[1724998930255,0.50513295,59017.0,59014.0,0.12]
[1724998930551,0.17976591,59016.0,59014.0,0.12]
[1724998931052,0.17876591,59016.0,59014.0,0.12]
[1724998931245,0.17876591,59016.0,59014.0,0.122]
[1724998931445,0.29876591,59016.0,59014.0,0.122]
[1724998931856,0.38448491,59016.0,59014.0,0.122]
[1724998932243,0.38448491,59016.0,59014.0,0.002]
[1724998932644,0.38448491,59016.0,59014.0,0.001]
[1724998932852,0.38448491,59016.0,59014.0,0.002]
[1724998933350,0.26448491,59016.0,59014.0,0.002]
[1724998933656,0.12,59015.0,59014.0,0.002]
[1724998933853,0.204719,59015.0,59014.0,0.002]
[1724998934041,0.38560738,59015.0,59014.0,0.002]
[1724998934351,0.38560738,59015.0,59014.0,0.01008429]
[1724998934546,0.38560738,59015.0,59014.0,0.002]
[1724998934941,0.38960738,59015.0,59014.0,0.002]
[1724998937053,0.26960738,59015.0,59014.0,0.002]
[1724998945267,0.38960738,59015.0,59014.0,0.002]
[1724998945462,0.084721,59014.0,59000.0,0.08474]
[1724998945650,0.4808,59009.0,59004.0,0.0039]
[1724998945854,0.4808,59009.0,59001.0,0.0039]
[1724998946058,0.74829936,59009.0,59001.0,0.0039]
[1724998946959,0.74829936,59009.0,59008.0,0.00125438]
[1724998947261,0.38749936,59009.0,59008.0,0.00225438]
[1724998947954,0.27249936,59009.0,59008.0,0.00225438]
[1724998949065,0.63329936,59009.0,59008.0,0.00225438]
[1724998949364,0.084737,59003.0,59001.0,0.0039]
[1724998949569,0.084747,58996.0,58995.0,0.0039]
[1724998949863,0.084747,58996.0,58990.0,0.3608]
[1724998949864,0.084753,58992.0,58990.0,0.3608]
[1724998950254,0.18354567,58991.0,58990.0,0.36903599]
[1724998951665,0.18854567,58991.0,58990.0,0.37003599]
[1724998952167,0.005,58991.0,58990.0,0.37003599]
[1724998952367,0.006,58991.0,58990.0,0.37103599]
[1724998952866,0.006,58991.0,58990.0,0.45579099]
[1724998959972,0.006,58991.0,58990.0,0.09499099]
[1724998960172,0.006,58991.0,58990.0,0.45579099]
[1724998962881,0.006,58991.0,58990.0,0.59443099]
[1724998965568,0.006,58991.0,58990.0,0.37103599]
[1724998965880,0.006,58991.0,58990.0,0.50967599]
[1724998968080,0.006,58991.0,58990.0,0.37103599]
[1724998970482,0.006,58991.0,58990.0,0.45579099]
[1724998971181,0.005,58991.0,58990.0,0.45479099]
[1724998971366,0.00025438,58997.0,58991.0,0.084753]
[1724998971569,0.00025438,58997.0,58996.0,0.4808]
[1724998972680,0.00525438,58997.0,58996.0,0.4808]
[1724998972981,0.001,58997.0,58996.0,0.4818]
[1724998974370,0.002,58997.0,58996.0,0.4828]
[1724998976486,0.002,58997.0,58996.0,0.567547]
[1724998979383,0.002,58997.0,58996.0,0.57588707]
[1724998980682,0.002,58997.0,58996.0,0.45588707]
[1724998981181,0.0562,58997.0,58996.0,0.45588707]
[1724998982582,0.0562,58997.0,58996.0,0.37114007]
[1724998984884,0.140945,58997.0,58996.0,0.50970007]
[1724998989377,0.140945,58997.0,58996.0,0.14890007]
[1724998990488,0.140945,58997.0,58996.0,0.50970007]
[1724999001185,0.140945,58997.0,58996.0,0.37114007]
[1724999005686,0.140945,58997.0,58996.0,0.01034007]
[1724999006690,0.501745,58997.0,58996.0,0.002]
[1724999006890,0.58649,58997.0,58996.0,0.002]
[1724999007186,1.941244,58997.0,58996.0,0.002]
[1724999007390,2.00203774,58997.0,58996.0,0.002]
[1724999009691,2.01011981,58997.0,58996.0,0.002]
[1724999010001,2.00203774,58997.0,58996.0,0.002]
[1724999010301,1.64123774,58997.0,58996.0,0.002]
[1724999012892,1.04123774,58997.0,58996.0,0.002]
[1724999013087,0.980444,58997.0,58996.0,0.002]
[1724999013992,1.580444,58997.0,58996.0,0.002]
[1724999014192,1.04123774,58997.0,58996.0,0.002]
[1724999014394,0.980444,58997.0,58996.0,0.002]
[1724999014595,0.507179,58997.0,58996.0,0.002]
[1724999014803,0.45248246,58997.0,58996.0,0.002]
[1724999014995,0.96100246,58997.0,58996.0,0.002]
[1724999015195,1.015699,58997.0,58996.0,0.002]
[1724999015788,0.507179,58997.0,58996.0,0.002]
[1724999016101,0.96100246,58997.0,58996.0,0.002]
[1724999016304,1.015699,58997.0,58996.0,0.002]
[1724999016597,0.507179,58997.0,58996.0,0.002]
[1724999016802,0.96100246,58997.0,58996.0,0.002]
[1724999017003,1.015699,58997.0,58996.0,0.002]
[1724999017501,0.507179,58997.0,58996.0,0.002]
[1724999017704,0.96100246,58997.0,58996.0,0.002]
[1724999017998,0.507179,58997.0,58996.0,0.002]
[1724999018190,0.96100246,58997.0,58996.0,0.002]
[1724999018504,1.015699,58997.0,58996.0,0.002]
[1724999020798,0.507179,58997.0,58996.0,0.002]
[1724999021002,0.45248246,58997.0,58996.0,0.002]
[1724999024899,0.39828246,58997.0,58996.0,0.002]
[1724999027199,0.39828246,58997.0,58996.0,0.01014465]
[1724999027592,0.27828246,58997.0,58996.0,0.01014465]
[1724999028901,0.19353746,58997.0,58996.0,0.37094465]
[1724999029905,0.19353746,58997.0,58996.0,0.45569165]
[1724999030908,0.002,58997.0,58996.0,0.45569165]
[1724999031717,0.001,58997.0,58996.0,0.45469165]
[1724999031906,0.002,58997.0,58996.0,0.45569165]
[1724999035407,0.12,58997.0,58996.0,0.45569165]
[1724999038702,0.12,58997.0,58996.0,0.59413165]
[1724999045818,0.12,58997.0,58996.0,0.3628]
[1724999046029,0.38954082,58997.0,58996.0,0.002]
[1724999048116,0.38954082,58997.0,58996.0,0.3628]
[1724999048319,0.26954082,58997.0,58996.0,0.3628]
[1724999055423,0.38954082,58997.0,58996.0,0.3628]
[1724999055727,0.38954082,58997.0,58996.0,0.002]
[1724999058629,0.18019802,58997.0,58996.0,0.002]